fUSD/lending_fUSD_20250407
["ID","MTS","AMOUNT","RATE_DAILY","PERIOD"]
[357361730,1744019449869,-1000.0,0.00049315,15]
[357361731,1744019449879,-1000.0,0.00049315,15]
[357361732,1744019449889,-1000.0,0.00049315,15]
[357361733,1744019449900,-1000.0,0.00049315,15]
[357361734,1744019449910,-1000.0,0.00049315,15]
[357361735,1744019449919,-1000.0,0.00049315,15]
[357361736,1744019449929,-1000.0,0.00049315,15]
[357361737,1744019449938,-1000.0,0.00049315,15]
[357361738,1744019449948,-1000.0,0.00049315,15]
[357361739,1744019449958,-1000.0,0.00049315,15]
[357361740,1744019449968,-1000.0,0.00049315,15]
[357361741,1744019449979,-1000.0,0.00049315,15]
[357361742,1744019449988,-1000.0,0.00049315,15]
[357361743,1744019449998,-1000.0,0.00049315,15]
[357361744,1744019450007,-1000.0,0.00049315,15]
[357361745,1744019450016,-1000.0,0.00049315,15]
[357361746,1744019450026,-1000.0,0.00049315,15]
[357361747,1744019450036,-1000.0,0.00049315,15]
[357361748,1744019450046,-151.0,0.00049315,2]
[357361749,1744019450055,-202.53861323,0.00049346,120]
[357361750,1744019450065,-313.50144273,0.00049408,120]
[357361751,1744019450075,-656.62551935,0.00049451,25]
[357361752,1744019450084,-1045.76958603,0.000495,120]
[357361753,1744019450094,-2158.5775808,0.000495,7]
[357361754,1744019450104,-362.892,0.00049542,2]
[357361755,1744019450115,-3852.5651,0.00049542,2]
[357361756,1744019450125,-342.2159,0.00049542,2]
[357361757,1744019450135,-11030.3795,0.00049542,2]
[357361758,1744019450148,-2874.470665,0.00049542,120]
[357361759,1744019450326,-2874.470665,0.00049542,120]
[357361760,1744019450337,-2840.47,0.00049546,30]
[357361761,1744019450346,-2646.17,0.00049625,30]
[357361762,1744019450356,-151.0,0.00049643,120]
[357361763,1744019450365,-151.0,0.00049643,120]
[357361764,1744019450375,-676.606687,0.00049643,120]
[357361765,1744019450384,-676.606687,0.00049643,120]
[357361766,1744019450393,-471.778633,0.00049643,120]
[357361767,1744019450405,-471.778633,0.00049643,120]
[357361768,1744019450414,-151.0,0.00049643,120]
[357361769,1744019450423,-151.0,0.00049643,120]
[357361770,1744019450432,-151.0,0.00049643,120]
[357361771,1744019450441,-294.994115,0.00049643,120]
[357361772,1744019450451,-204.367652,0.00049643,120]
[357361773,1744019450460,-294.994115,0.00049643,120]
[357361774,1744019450469,-151.0,0.00049643,120]
[357361775,1744019450478,-151.0,0.00049643,120]
[357361776,1744019450487,-151.0,0.00049643,120]
[357361777,1744019450496,-2505.09,0.00049654,30]
[357361778,1744019450505,-173.484,0.00049733,87]
[357361779,1744019450514,-6725.39545748,0.00049745,2]
[357361780,1744019450523,-167.34821137,0.0004977,120]
[357361781,1744019450533,-4941.67780281,0.0004979,120]
[357361782,1744019450542,-572.81751956,0.000498,30]
[357361783,1744019450552,-264.42949382,0.000498,14]
[357361784,1744019450561,-389.607548,0.000498,120]
[357361785,1744019450570,-389.607548,0.000498,120]
[357361786,1744019450580,-1000.0,0.000498,120]
[357361787,1744019450590,-666.66666,0.000498,34]
[357361788,1744019450599,-1000.0,0.00049807,2]
[357361789,1744019450611,-1000.0,0.00049807,2]
[357361790,1744019450622,-1000.0,0.00049807,2]
[357361791,1744019450632,-1000.0,0.00049807,2]
[357361792,1744019450642,-1000.0,0.00049807,2]
[357361793,1744019450655,-1000.0,0.00049807,2]
[357361794,1744019450665,-1000.0,0.00049807,2]
[357361795,1744019450675,-1000.0,0.00049807,2]
[357361796,1744019450684,-1000.0,0.00049807,2]
[357361797,1744019450693,-1000.0,0.00049807,2]
[357361798,1744019450706,-1000.0,0.00049807,2]
[357361799,1744019450716,-151.0,0.00049808,120]
[357361800,1744019450726,-151.0,0.00049808,120]
[357361801,1744019450736,-2000.0,0.00049808,120]
[357361802,1744019450746,-2000.0,0.00049808,120]
[357361803,1744019450756,-2000.0,0.00049808,120]
[357361804,1744019450765,-2000.0,0.00049808,120]
[357361805,1744019450775,-2000.0,0.00049808,120]
[357361806,1744019450785,-2000.0,0.00049808,120]
[357361807,1744019450795,-2000.0,0.00049808,120]
[357361808,1744019450804,-2000.0,0.00049808,120]
[357361809,1744019450814,-2000.0,0.00049808,120]
[357361810,1744019450823,-2000.0,0.00049808,120]
[357361811,1744019450833,-2079.857357,0.00049808,120]
[357361812,1744019450843,-151.0,0.00049808,120]
[357361813,1744019450852,-168.699544,0.00049808,120]
[357361814,1744019450862,-1019.294842,0.00049808,120]
[357361815,1744019450872,-168.699544,0.00049808,120]
[357361816,1744019450882,-1019.294842,0.00049808,120]
[357361817,1744019450893,-151.0,0.00049808,120]
[357361818,1744019450906,-151.0,0.00049808,110]
[357361819,1744019450916,-248.050437,0.00049808,120]
[357361820,1744019450927,-248.050437,0.00049808,120]
[357361821,1744019450938,-151.0,0.00049808,120]
[357361822,1744019450948,-151.0,0.00049808,120]
[357361823,1744019450959,-846.129088,0.00049808,120]
[357361824,1744019450968,-846.129088,0.00049808,120]
[357361825,1744019450978,-156.515478,0.00049808,120]
[357361826,1744019450988,-353.839446,0.00049808,120]
[357361827,1744019450998,-353.839446,0.00049808,120]
[357361828,1744019451008,-2493.078318,0.00049808,120]
[357361829,1744019451018,-8726.930117,0.00049808,120]
[357361830,1744019451027,-8726.930117,0.00049808,120]
[357361831,1744019451037,-2493.078318,0.00049808,120]
[357361832,1744019451047,-151.0,0.00049808,90]
[357361833,1744019451055,-151.0,0.00049808,120]
[357361834,1744019451064,-321.742672,0.00049808,120]
[357361835,1744019451072,-591.578074,0.00049808,120]
[357361836,1744019451079,-321.742672,0.00049808,120]
[357361837,1744019451087,-591.578074,0.00049808,120]
[357361838,1744019451094,-214.976967,0.00049808,120]
[357361839,1744019451101,-214.976967,0.00049808,120]
[357361840,1744019451108,-312.78119,0.00049808,120]
[357361841,1744019451116,-312.78119,0.00049808,120]
[357361842,1744019451123,-151.0,0.00049808,120]
[357361843,1744019451130,-151.0,0.00049808,120]
[357361844,1744019451138,-151.0,0.00049808,120]
[357361845,1744019451147,-264.33726749,0.00049808,37]
[357361846,1744019451154,-4541.50768879,0.00049817,15]
[357361847,1744019451162,-1381.97,0.00049839,30]
[357361848,1744019451172,-151.0,0.00049863,2]
[357361849,1744019451181,-4957.2,0.00049872,30]
[357361850,1744019451190,-863.22,0.00049874,30]
[357361851,1744019451200,-2621.41,0.00049875,30]
[357361852,1744019451209,-962.93,0.0004989,30]
[357361853,1744019451219,-2000.0,0.000499,2]
[357361854,1744019451228,-2505.1,0.00049935,30]
[357361855,1744019451237,-3068.1,0.00049949,30]
[357361856,1744019451246,-257.421524,0.0005,120]
[357361857,1744019451256,-257.421524,0.0005,120]
[357361858,1744019451265,-2300.2075356,0.0005,2]
[357361859,1744019451275,-2240.0,0.0005,120]
[357361860,1744019451284,-9729.26747303,0.0005,120]
[357361861,1744019451294,-223.64464989,0.0005,30]
[357361862,1744019451304,-25049.90736169,0.0005,3]
[357361863,1744019451314,-1394.59663529,0.0005,120]
[357361864,1744019451324,-526.99501671,0.0005,120]
[357361865,1744019451334,-1607.49677,0.0005,120]
[357361866,1744019451344,-521.90249932,0.0005,30]
[357361867,1744019451354,-3126.78433699,0.0005,120]
[357361868,1744019451364,-213.12545704,0.0005,120]
[357361869,1744019451374,-713.91800584,0.0005,120]
[357361870,1744019451383,-500.0,0.0005,30]
[357361871,1744019451393,-677.90280253,0.0005,120]
[357361872,1744019451405,-383.38204812,0.0005,120]
[357361873,1744019451415,-528.79,0.0005,30]
[357361874,1744019451425,-233.092811,0.0005,120]
[357361875,1744019451434,-423.223933,0.0005,120]
[357361876,1744019451444,-423.223933,0.0005,120]
[357361877,1744019451453,-151.0,0.0005,120]
[357361878,1744019451462,-1000.0,0.0005,30]
[357361879,1744019451472,-500.0,0.0005,120]
[357361880,1744019451481,-184.785154,0.0005,120]
[357361881,1744019451490,-184.785154,0.0005,120]
[357361882,1744019451499,-500.0,0.0005,120]
[357361883,1744019451509,-151.0,0.0005,120]
[357361884,1744019451519,-744.576336,0.0005,120]
[357361885,1744019451528,-744.576336,0.0005,120]
[357361886,1744019451537,-500.0,0.0005,120]
[357361887,1744019451546,-500.0,0.0005,120]
[357361888,1744019451555,-500.0,0.0005,120]
[357361889,1744019451564,-774.94331796,0.00050347,2]
[357361890,1744019451573,-2649.15,0.000504,14]
[357361891,1744019451582,-151.0,0.00050411,2]
[357361892,1744019451591,-154.55,0.0005045,2]
[357361893,1744019451600,-180.93393755,0.00050671,10]
[357361894,1744019451609,-1296.65,0.00050695,2]
[357361895,1744019451619,-1296.65,0.00050708,2]
[357361896,1744019451631,-1296.65,0.00050722,2]
[357361897,1744019451640,-1296.65,0.00050735,2]
[357361898,1744019451651,-1296.65,0.00050748,2]
[357361899,1744019451661,-1296.65,0.00050762,2]
[357361900,1744019451670,-1296.65,0.00050775,2]
[357361901,1744019451679,-1296.65,0.00050788,2]
[357361902,1744019451688,-1296.65,0.00050802,2]
[357361903,1744019451697,-1296.65,0.00050815,2]
[357361904,1744019451706,-1296.65,0.00050828,2]
[357361905,1744019451715,-1296.65,0.00050842,2]
[357361906,1744019451725,-151.0,0.00050842,120]
[357361907,1744019451734,-1195.727949,0.00050842,120]
[357361908,1744019451743,-1195.727949,0.00050842,120]
[357361909,1744019451752,-433.98,0.00050844,120]
[357361910,1744019451761,-1296.65,0.00050855,2]
[357361911,1744019451771,-1296.65,0.00050868,2]
[357361912,1744019451780,-1296.65,0.00050882,2]
[357361913,1744019451789,-1296.65,0.00050895,2]
[357361914,1744019451798,-1296.65,0.00050909,2]
[357361915,1744019451807,-1296.65,0.00050922,2]
[357361916,1744019451817,-1296.65,0.00050935,2]
[357361917,1744019451827,-1296.65,0.00050949,2]
[357361918,1744019451837,-151.0,0.00050959,2]
[357361919,1744019451846,-249.0,0.00051,120]
[357361920,1744019451856,-2248.8930673,0.00051,120]
[357361921,1744019451865,-1000.0,0.00051,45]
[357361922,1744019451875,-300.0,0.00051,120]
[357361923,1744019451885,-4457.0,0.00051,93]
[357361924,1744019451894,-1104.1,0.0005132,2]
[357361925,1744019451907,-166.63,0.00051372,2]
[357361926,1744019451918,-151.0,0.00051507,2]
[357361927,1744019451928,-15643.87724278,0.00051649,15]
[357361928,1744019451938,-240.0,0.0005184,120]
[357361929,1744019451948,-5557.0,0.000519,93]
[357361930,1744019451959,-264.55531989,0.00051998,120]
[357361931,1744019451968,-1564.5912786,0.00052,14]
[357361932,1744019451978,-160.0,0.00052,120]
[357361933,1744019451987,-426.19590024,0.00052,120]
[357361934,1744019451997,-1708.93680254,0.00052,30]
[357361935,1744019452006,-236.30537766,0.00052,120]
[357361936,1744019452015,-1000.0,0.00052,45]
[357361937,1744019452024,-2649.15,0.00052,14]
[357361938,1744019452033,-151.0,0.00052,120]
[357361939,1744019452042,-151.0,0.00052,120]
[357361940,1744019452051,-675.402652,0.00052,120]
[357361941,1744019452061,-675.402652,0.00052,120]
[357361942,1744019452070,-4541.50768879,0.00052235,15]
[357361943,1744019452080,-300.0,0.00052408,120]
[357361944,1744019452090,-161.040716,0.00052498,120]
[357361945,1744019452099,-200.0,0.00052525,120]
[357361946,1744019452109,-2000.0,0.000526,2]
[357361947,1744019452118,-3345.61748079,0.00052619,2]
[357361948,1744019452130,-161.040716,0.00052798,120]
[357361949,1744019452139,-1026.29,0.000528,100]
[357361950,1744019452151,-151.0,0.0005284,120]
[357361951,1744019452160,-10584.7901353,0.000529,120]
[357361952,1744019452170,-10584.7901353,0.000529,120]
[357361953,1744019452180,-1303.0149002,0.00052985,4]
[357361954,1744019452190,-920.182166,0.00052985,120]
[357361955,1744019452199,-920.182166,0.00052985,120]
[357361956,1744019452209,-161.040716,0.00052998,120]
[357361957,1744019452219,-5348.04874064,0.00053,5]
[357361958,1744019452228,-1000.0,0.00053,45]
[357361959,1744019452237,-161.040716,0.00053198,120]
[357361960,1744019452247,-1000.0,0.000532,7]
[357361961,1744019452256,-1000.0,0.000532,7]
[357361962,1744019452265,-1378.0,0.000532,7]
[357361963,1744019452275,-1000.0,0.000532,7]
[357361964,1744019452285,-1000.0,0.000532,7]
[357361965,1744019452295,-1000.0,0.000532,7]
[357361966,1744019452304,-1000.0,0.000532,7]
[357361967,1744019452314,-1000.0,0.000532,7]
[357361968,1744019452323,-1000.0,0.000532,7]
[357361969,1744019452332,-1839.0,0.000532,7]
[357361970,1744019452342,-1000.0,0.000532,7]
[357361971,1744019452351,-1000.0,0.000532,7]
[357361972,1744019452360,-500.0,0.00053424,30]
[357361973,1744019452370,-153.69,0.00053425,120]
[357361974,1744019452379,-151.0,0.00053428,120]
[357361975,1744019452388,-151.0,0.00053428,120]
[357361976,1744019452398,-508.61138,0.00053428,120]
[357361977,1744019452408,-508.61138,0.00053428,120]
[357361978,1744019452417,-151.0,0.00053428,120]
[357361979,1744019452427,-1020.01294584,0.0005346,90]
[357361980,1744019452436,-161.040716,0.00053498,120]
[357361981,1744019452446,-1000.0,0.000535,45]
[357361982,1744019452455,-1104.1,0.00053584,2]
[357361983,1744019452464,-1000.0,0.000536,7]
[357361984,1744019452474,-2649.15,0.000536,60]
[357361985,1744019452484,-1091.69024046,0.00053672,30]
[357361986,1744019452494,-1149.15705403,0.00053672,30]
[357361987,1744019452503,-151.0,0.00053672,120]
[357361988,1744019452512,-151.0,0.00053672,120]
[357361989,1744019452521,-151.0,0.00053672,120]
[357361990,1744019452531,-168.699544,0.00053672,120]
[357361991,1744019452540,-1019.294842,0.00053672,120]
[357361992,1744019452550,-168.699544,0.00053672,120]
[357361993,1744019452560,-1019.294842,0.00053672,120]
[357361994,1744019452569,-151.0,0.00053672,110]
[357361995,1744019452579,-353.839446,0.00053672,120]
[357361996,1744019452588,-353.839446,0.00053672,120]
[357361997,1744019452598,-2493.078318,0.00053672,120]
[357361998,1744019452608,-2493.078318,0.00053672,120]
[357361999,1744019452621,-151.0,0.00053672,120]
[357362000,1744019452631,-161.040716,0.00053698,120]
[357362001,1744019452640,-1000.0,0.00053744,5]
[357362002,1744019452653,-161.040716,0.00053798,120]
[357362003,1744019452663,-1322.79077856,0.00053887,90]
[357362004,1744019452673,-389.607548,0.00053887,120]
[357362005,1744019452683,-389.607548,0.00053887,120]
[357362006,1744019452694,-641.42512586,0.0005389,120]
[357362007,1744019452704,-641.42512586,0.0005389,120]
[357362008,1744019452713,-641.42512586,0.0005389,120]
[357362009,1744019452722,-641.42512586,0.0005389,120]
[357362010,1744019452731,-641.42512586,0.0005389,120]
[357362011,1744019452740,-641.42512586,0.0005389,120]
[357362012,1744019452749,-641.42512586,0.0005389,120]
[357362013,1744019452758,-641.42512586,0.0005389,120]
[357362014,1744019452768,-641.42512586,0.0005389,120]
[357362015,1744019452777,-641.42512586,0.0005389,120]
[357362016,1744019452786,-641.42512586,0.0005389,120]
[357362017,1744019452795,-641.42512586,0.0005389,120]
[357362018,1744019452805,-641.42512586,0.0005389,120]
[357362019,1744019452815,-641.42512586,0.0005389,120]
[357362020,1744019452824,-641.42512586,0.0005389,120]
[357362021,1744019452834,-641.42512586,0.0005389,120]
[357362022,1744019452843,-641.42512586,0.0005389,120]
[357362023,1744019452853,-641.42512586,0.0005389,120]
[357362024,1744019452863,-641.42512586,0.0005389,120]
[357362025,1744019452873,-150.0,0.00053892,7]
[357362026,1744019452883,-161.040716,0.00053898,120]
[357362027,1744019452893,-1400.0,0.000539,19]
[357362028,1744019452906,-150.0,0.00053938,7]
[357362029,1744019452916,-365.0,0.0005397,120]
[357362030,1744019452927,-500.0,0.00053972,32]
[357362031,1744019452936,-1000.0,0.00053979,2]
[357362032,1744019452946,-1000.0,0.00053979,2]
[357362033,1744019452957,-1000.0,0.00053979,2]
[357362034,1744019452966,-1000.0,0.00053979,2]
[357362035,1744019452976,-1000.0,0.00053979,2]
[357362036,1744019452985,-1000.0,0.00053979,2]
[357362037,1744019452995,-1000.0,0.00053979,2]
[357362038,1744019453004,-1000.0,0.00053979,2]
[357362039,1744019453014,-1000.0,0.00053979,2]
[357362040,1744019453194,-1000.0,0.00053979,2]
[357362041,1744019453205,-1000.0,0.00053979,2]
[357362042,1744019453216,-10584.7901353,0.0005398,120]
[357362043,1744019453225,-10584.7901353,0.0005398,120]
[357362044,1744019453235,-10584.7901353,0.0005398,120]
[357362045,1744019453245,-10584.7901353,0.0005398,120]
[357362046,1744019453255,-2874.470665,0.0005398,120]
[357362047,1744019453265,-2874.470665,0.0005398,120]
[357362048,1744019453274,-423.223933,0.0005398,120]
[357362049,1744019453284,-423.223933,0.0005398,120]
[357362050,1744019453294,-184.785154,0.0005398,120]
[357362051,1744019453303,-184.785154,0.0005398,120]
[357362052,1744019453312,-151.0,0.0005398,120]
[357362053,1744019453323,-189.323502,0.0005398,120]
[357362054,1744019453333,-744.576336,0.0005398,120]
[357362055,1744019453343,-248.050437,0.0005398,120]
[357362056,1744019453353,-744.576336,0.0005398,120]
[357362057,1744019453362,-248.050437,0.0005398,120]
[357362058,1744019453372,-151.0,0.0005398,120]
[357362059,1744019453381,-248.837734,0.0005398,120]
[357362060,1744019453390,-846.129088,0.0005398,120]
[357362061,1744019453402,-846.129088,0.0005398,120]
[357362062,1744019453412,-8726.930117,0.0005398,120]
[357362063,1744019453421,-8726.930117,0.0005398,120]
[357362064,1744019453431,-151.0,0.0005398,90]
[357362065,1744019453441,-321.742672,0.0005398,120]
[357362066,1744019453450,-591.578074,0.0005398,120]
[357362067,1744019453459,-321.742672,0.0005398,120]
[357362068,1744019453469,-591.578074,0.0005398,120]
[357362069,1744019453478,-214.976967,0.0005398,120]
[357362070,1744019453487,-214.976967,0.0005398,120]
[357362071,1744019453497,-312.78119,0.0005398,120]
[357362072,1744019453506,-312.78119,0.0005398,120]
[357362073,1744019453515,-365.0,0.0005398,120]
[357362074,1744019453525,-151.0,0.0005398,120]
[357362075,1744019453535,-151.0,0.0005398,120]
[357362076,1744019453544,-151.0,0.0005398,120]
[357362077,1744019453554,-365.0,0.0005399,120]
[357362078,1744019453563,-154.040716,0.00053998,120]
[357362079,1744019453573,-1000.0,0.00053999,2]
[357362080,1744019453582,-1000.0,0.00053999,2]
[357362081,1744019453591,-1000.0,0.00053999,2]
[357362082,1744019453601,-1000.0,0.00053999,2]
[357362083,1744019453611,-1000.0,0.00053999,2]
[357362084,1744019453622,-1000.0,0.00053999,2]
[357362085,1744019453631,-1000.0,0.00053999,2]
[357362086,1744019453641,-1000.0,0.00053999,2]
[357362087,1744019453650,-1000.0,0.00053999,2]
[357362088,1744019453661,-1000.0,0.00053999,2]
[357362089,1744019453670,-1000.0,0.00053999,2]
[357362090,1744019453679,-258.52949734,0.00053999,30]
[357362091,1744019453689,-10000.0,0.00054,120]
[357362092,1744019453699,-8000.0,0.00054,120]
[357362093,1744019453709,-151.32080497,0.00054,120]
[357362094,1744019453719,-20000.0,0.00054,15]
[357362095,1744019453729,-7390.34864666,0.00054,120]
[357362096,1744019453738,-20250.54806563,0.00054,120]
[357362097,1744019453748,-8287.0,0.00054,90]
[357362098,1744019453757,-209354.36422765,0.00054,5]
[357362099,1744019453767,-365818.71196779,0.00054,120]
[357362100,1744019454330,-1249.20435065,0.00054,120]
[357362101,1744019454404,300.0,0.00021,2]
[357362102,1744019455211,-350.0,0.00023,2]
[357362103,1744019455222,-52.0340627,0.00025,2]
[357362104,1744019455236,-347.9659373,0.00025,2]
[357362105,1744019455246,-151.0,0.00033,7]
[357362106,1744019455256,-151.0,0.0003511,7]
[357362107,1744019455265,-151.0,0.00038,7]
[357362108,1744019455275,-136.32932174,0.000429,120]
[357362109,1744019455814,-34.97099826,0.000429,120]
[357362110,1744019455824,-504.296285,0.000429,40]
[357362111,1744019455834,-151.0,0.000429,14]
[357362112,1744019455844,-151.0,0.00048,14]
[357362113,1744019455854,-17677.99983856,0.00054,120]
[357362114,1744019455864,-151.0,0.00054,120]
[357362115,1744019455873,-151.0,0.00054,120]
[357362116,1744019455883,-151.0,0.00054,120]
[357362117,1744019455893,-151.0,0.00054,120]
[357362118,1744019455907,-151.0,0.00054,120]
[357362119,1744019455917,-508.61138,0.00054,120]
[357362120,1744019455926,-508.61138,0.00054,120]
[357362121,1744019455937,-151.0,0.00054,120]
[357362122,1744019455947,-151.0,0.00054,120]
[357362123,1744019455956,-151.0,0.00054,120]
[357362124,1744019455967,-151.0,0.00054,120]
[357362125,1744019455976,-151.0,0.00054,120]
[357362126,1744019455986,-2874.470665,0.00054,120]
[357362127,1744019455996,-2874.470665,0.00054,120]
[357362128,1744019456006,-676.606687,0.00054,120]
[357362129,1744019456016,-676.606687,0.00054,120]
[357362130,1744019456026,-676.606687,0.00054,120]
[357362131,1744019456035,-676.606687,0.00054,120]
[357362132,1744019456045,-471.778633,0.00054,120]
[357362133,1744019456055,-471.778633,0.00054,120]
[357362134,1744019456064,-471.778633,0.00054,120]
[357362135,1744019456074,-471.778633,0.00054,120]
[357362136,1744019456084,-151.0,0.00054,120]
[357362137,1744019456094,-151.0,0.00054,120]
[357362138,1744019456104,-188.000229,0.00054,120]
[357362139,1744019456114,-423.223933,0.00054,120]
[357362140,1744019456128,-423.223933,0.00054,120]
[357362141,1744019456138,-423.223933,0.00054,120]
[357362142,1744019456148,-423.223942,0.00054,120]
[357362143,1744019456159,-151.0,0.00054,120]
[357362144,1744019456169,-151.0,0.00054,120]
[357362145,1744019456179,-294.994115,0.00054,120]
[357362146,1744019456188,-294.994115,0.00054,120]
[357362147,1744019456198,-294.994115,0.00054,120]
[357362148,1744019456208,-294.994115,0.00054,120]
[357362149,1744019456218,-151.0,0.00054,120]
[357362150,1744019456229,-151.0,0.00054,120]
[357362151,1744019456239,-151.0,0.00054,120]
[357362152,1744019456249,-151.0,0.00054,120]
[357362153,1744019456259,-151.0,0.00054,120]
[357362154,1744019456269,-151.0,0.00054,120]
[357362155,1744019456279,-151.0,0.00054,120]
[357362156,1744019456289,-151.0,0.00054,120]
[357362157,1744019456298,-151.0,0.00054,120]
[357362158,1744019456308,-151.0,0.00054,120]
[357362159,1744019456318,-280.997358,0.00054,120]
[357362160,1744019456328,-184.785154,0.00054,120]
[357362161,1744019456338,-184.785154,0.00054,120]
[357362162,1744019456348,-500.0,0.00054,120]
[357362163,1744019456358,-184.785154,0.00054,120]
[357362164,1744019456368,-184.785162,0.00054,120]
[357362165,1744019456378,-168.699544,0.00054,120]
[357362166,1744019456388,-168.699544,0.00054,120]
[357362167,1744019456397,-1019.294842,0.00054,120]
[357362168,1744019456410,-1019.294842,0.00054,120]
[357362169,1744019456419,-168.699544,0.00054,120]
[357362170,1744019456429,-168.699538,0.00054,120]
[357362171,1744019456439,-1019.294842,0.00054,120]
[357362172,1744019456449,-1019.29485193,0.00054,120]
[357362173,1744019456459,-389.607548,0.00054,120]
[357362174,1744019456473,-389.607548,0.00054,120]
[357362175,1744019456483,-389.607548,0.00054,120]
[357362176,1744019456492,-389.607548,0.00054,120]
[357362177,1744019456502,-500.4,0.00054,120]
[357362178,1744019456512,-500.4,0.00054,120]
[357362179,1744019456522,-744.576336,0.00054,120]
[357362180,1744019456532,-744.576336,0.00054,120]
[357362181,1744019456542,-248.050437,0.00054,120]
[357362182,1744019456552,-248.050437,0.00054,120]
[357362183,1744019456562,-744.576336,0.00054,120]
[357362184,1744019456572,-744.576336,0.00054,120]
[357362185,1744019456581,-248.050437,0.00054,120]
[357362186,1744019456592,-248.050445,0.00054,120]
[357362187,1744019456602,-151.0,0.00054,120]
[357362188,1744019456613,-151.0,0.00054,120]
[357362189,1744019456625,-846.129088,0.00054,120]
[357362190,1744019456634,-846.129088,0.00054,120]
[357362191,1744019456644,-846.129088,0.00054,120]
[357362192,1744019456658,-846.129087,0.00054,120]
[357362193,1744019456670,-353.839446,0.00054,120]
[357362194,1744019456680,-353.839446,0.00054,120]
[357362195,1744019456690,-353.839446,0.00054,120]
[357362196,1744019456702,-353.839445,0.00054,120]
[357362197,1744019456712,-2493.078318,0.00054,120]
[357362198,1744019456722,-8726.930117,0.00054,120]
[357362199,1744019456732,-2493.078318,0.00054,120]
[357362200,1744019456741,-8726.930117,0.00054,120]
[357362201,1744019456751,-8726.930117,0.00054,120]
[357362202,1744019456760,-8726.930124,0.00054,120]
[357362203,1744019456770,-2493.078318,0.00054,120]
[357362204,1744019456779,-2493.078325,0.00054,120]
[357362205,1744019456789,-151.0,0.00054,90]
[357362206,1744019456799,-151.0,0.00054,90]
[357362207,1744019456808,-151.0,0.00054,120]
[357362208,1744019456818,-151.0,0.00054,120]
[357362209,1744019456827,-321.742672,0.00054,120]
[357362210,1744019456837,-321.742672,0.00054,120]
[357362211,1744019456846,-591.578074,0.00054,120]
[357362212,1744019456856,-591.578074,0.00054,120]
[357362213,1744019456866,-321.742672,0.00054,120]
[357362214,1744019456876,-321.742666,0.00054,120]
[357362215,1744019456885,-591.578074,0.00054,120]
[357362216,1744019456895,-591.578068,0.00054,120]
[357362217,1744019456907,-214.976967,0.00054,120]
[357362218,1744019456916,-214.976967,0.00054,120]
[357362219,1744019456926,-214.976967,0.00054,120]
[357362220,1744019456935,-214.976962,0.00054,120]
[357362221,1744019456946,-151.0,0.00054,120]
[357362222,1744019456956,-151.0,0.00054,120]
[357362223,1744019456966,-312.78119,0.00054,120]
[357362224,1744019456975,-312.78119,0.00054,120]
[357362225,1744019456985,-312.78119,0.00054,120]
[357362226,1744019456995,-312.781185,0.00054,120]
[357362227,1744019457004,-1195.727949,0.00054,120]
[357362228,1744019457013,-1195.727949,0.00054,120]
[357362229,1744019457023,-920.182166,0.00054,120]